bitfinex/quotes_SOLUSD_20260113
["timestamp","ask_amount","ask_price","bid_price","bid_amount"]
[1768278145497,0.6552358,138.87,138.83,13.14]
[1768278145686,2.13102408,138.88,138.83,20.34293542]
[1768278145889,2.78625988,138.88,138.83,20.34293542]
[1768278147907,2.13102408,138.87,138.83,20.34293542]
[1768278148404,2.78625988,138.87,138.83,20.34293542]
[1768278149506,2.13102408,138.87,138.83,20.34293542]
[1768278151411,2.78625988,138.87,138.83,20.34293542]
[1768278153110,2.78625988,138.87,138.79,18.01255042]
[1768278153111,2.78625988,138.84,138.79,18.01255042]
[1768278153282,7.20105202,138.87,138.79,31.32558771]
[1768278153283,2.0858404,138.83,138.79,31.32558771]
[1768278153487,2.0858404,138.83,138.8,0.17303729]
[1768278153701,2.0858404,138.83,138.79,31.15255042]
[1768278153894,2.0858404,138.83,138.8,7.20426179]
[1768278154298,2.13102408,138.84,138.8,7.20426179]
[1768278154501,2.13102408,138.84,138.8,7.37729908]
[1768278155209,2.13102408,138.82,138.79,13.31303729]
[1768278155409,0.71126507,138.83,138.79,20.51802087]
[1768278155609,2.84228915,138.83,138.79,20.51802087]
[1768278158614,0.71126507,138.82,138.79,20.34498358]
[1768278158817,0.68126508,138.82,138.79,20.34498358]
[1768278159328,2.13102408,138.81,138.79,13.14]
[1768278159613,2.13102408,138.8,138.75,0.20303728]
[1768278159813,9.33391941,138.84,138.76,0.20303728]
[1768278160020,2.13102408,138.81,138.77,7.20582234]
[1768278160311,2.13102408,138.81,138.77,7.40885962]
[1768278160715,2.13102408,138.81,138.77,7.20582234]
[1768278160901,2.84228915,138.81,138.77,7.20582234]
[1768278161693,0.71126507,138.81,138.76,7.2066878]
[1768278161894,2.84228915,138.81,138.76,7.2066878]
[1768278162718,2.84228915,138.81,138.76,7.40972508]
[1768278162921,2.84228915,138.81,138.77,7.40895447]
[1768278163703,0.71126507,138.8,138.77,7.20591719]
[1768278164412,0.71126507,138.8,138.76,7.2066878]
[1768278164599,0.71126507,138.8,138.76,25.42644459]
[1768278165097,2.84228915,138.81,138.77,0.20303728]
[1768278165297,0.71126507,138.81,138.77,0.20303728]
[1768278166019,0.71126507,138.81,138.76,25.42644459]
[1768278166199,0.71126507,138.81,138.76,27.55746867]
[1768278166719,0.71126507,138.81,138.77,2.13102408]
[1768278168818,0.71126507,138.81,138.78,7.20564922]
[1768278171218,0.71126507,138.81,138.77,7.20597777]
[1768278171812,0.71126507,138.8,138.77,7.20597777]
[1768278172519,2.84228915,138.79,138.76,7.20653417]
[1768278172734,0.71126507,138.83,138.78,2.33406136]
[1768278172906,0.71126507,138.85,138.8,0.20303728]
[1768278173223,2.84228915,138.85,138.8,0.20303728]
[1768278173426,2.84228915,138.85,138.81,7.20409192]
[1768278173812,0.71126507,138.84,138.81,7.20409192]
[1768278175202,0.71126507,138.84,138.8,2.33406136]
[1768278175417,4.03433353,138.85,138.8,0.20303728]
[1768278175825,0.71126507,138.85,138.8,3.52610574]
[1768278176032,4.03433353,138.85,138.8,3.52610574]
[1768278176209,4.03433353,138.85,138.8,7.40725678]
[1768278176616,0.71126507,138.84,138.8,7.40725678]
[1768278176811,0.71126507,138.84,138.8,7.2042195]
[1768278178031,0.71126507,138.84,138.79,10.52819851]
[1768278178839,0.71126507,138.84,138.8,3.52610574]
[1768278179133,0.71126507,138.84,138.8,10.73063861]
[1768278180125,0.71126507,138.84,138.8,7.40757015]
[1768278181127,4.03433353,138.86,138.81,0.20303728]
[1768278181434,0.71126507,138.86,138.81,3.52610574]
[1768278181635,0.71126507,138.86,138.82,0.20303728]
[1768278182318,0.71126507,138.88,138.83,3.52610574]
[1768278182926,0.71126507,138.88,138.84,3.32306846]
[1768278183807,0.71126507,138.88,138.83,3.52610574]
[1768278184007,0.71126507,138.88,138.84,3.32306846]
[1768278184226,0.71126507,138.88,138.84,3.52610574]
[1768278186240,3.97709364,138.89,138.84,10.728532]
[1768278186549,0.65402518,138.89,138.84,10.728532]
[1768278188523,0.65402518,138.89,138.85,3.32306846]
[1768278191046,0.65402518,138.89,138.84,10.728532]
[1768278191733,0.65402518,138.89,138.84,7.20242626]
[1768278191932,3.97709364,138.89,138.84,3.32306846]
[1768278192230,0.65402518,138.87,138.83,3.32306846]
[1768278192818,0.65402518,138.87,138.82,13.14]
[1768278193036,0.65402518,138.83,138.79,112.82802055]
[1768278193242,0.65402518,138.83,138.8,3.32306846]
[1768278193630,0.65470811,138.85,138.8,3.52610574]
[1768278193827,0.65470811,138.85,138.8,10.73062392]
[1768278194062,0.65470811,138.85,138.81,3.32306846]
[1768278194572,0.65470811,138.85,138.82,3.32306846]
[1768278195235,13.79470811,138.88,138.84,3.52610574]
[1768278195537,0.65470811,138.88,138.84,3.32306846]
[1768278195936,3.97777657,138.88,138.83,3.52610574]
[1768278196348,0.65470811,138.87,138.82,7.40637513]
[1768278196549,0.65470811,138.86,138.82,7.20333785]
[1768278197059,0.65470811,138.86,138.82,10.52640631]
[1768278197729,7.20058531,138.88,138.82,10.52640631]
[1768278197730,0.65470811,138.87,138.83,3.52610574]
[1768278198031,0.65470811,138.87,138.83,3.32306846]
[1768278199351,0.65470811,138.87,138.82,7.40637513]
[1768278199748,0.65470811,138.86,138.82,7.40637513]
[1768278200050,0.65470811,138.86,138.82,10.72944359]
[1768278203134,0.65470811,138.86,138.81,122.64394229]
[1768278203335,0.65470811,138.86,138.82,3.32306846]
[1768278203556,0.65470811,138.86,138.81,126.17004803]
[1768278203737,0.65470811,138.86,138.81,125.96701075]
[1768278203738,0.65470811,138.85,138.81,125.96701075]
[1768278203936,0.65470811,138.85,138.81,122.64394229]
[1768278204455,0.65470811,138.85,138.81,109.50401074]
[1768278204672,0.65470811,138.85,138.81,112.8270792]
[1768278205265,0.65470811,138.85,138.81,112.7270792]
[1768278205465,0.65470811,138.85,138.81,112.93011648]
[1768278205661,0.65470811,138.85,138.81,112.7270792]
[1768278205863,3.32306846,138.86,138.81,112.93011648]
[1768278206066,0.65470811,138.85,138.81,102.40303728]
[1768278206667,0.65470811,138.85,138.81,102.2]
[1768278206864,0.65470811,138.81,138.79,102.2]
[1768278207161,0.65470811,138.79,138.75,0.20303728]
[1768278207553,3.32306846,138.8,138.75,0.20303728]
[1768278207740,3.97777657,138.8,138.75,0.20303728]
[1768278208258,0.65470811,138.78,138.74,23.67072246]
[1768278208440,0.62470812,138.78,138.74,23.67072246]
[1768278209545,0.62470812,138.78,138.74,23.90375973]
[1768278210335,0.62470812,138.78,138.74,20.347654]
[1768278210554,0.62470812,138.78,138.74,23.67072246]
[1768278211071,0.62470812,138.78,138.74,20.347654]
[1768278211266,0.62470812,138.78,138.74,23.67072246]
[1768278211569,0.62470812,138.78,138.74,20.347654]
[1768278212171,0.62470812,138.78,138.74,20.58069127]
[1768278212360,0.65470811,138.76,138.72,6.6801107]
[1768278212565,3.32306846,138.77,138.72,7.33681363]
[1768278212947,3.32306846,138.77,138.72,17.86825521]
[1768278213149,3.32306846,138.77,138.73,7.20806614]
[1768278213663,3.32306846,138.77,138.73,7.86476907]
[1768278213864,3.32306846,138.77,138.73,7.20806614]
[1768278214063,3.32306846,138.77,138.73,7.86476907]
[1768278214259,3.32306846,138.78,138.73,7.20806614]
[1768278214465,3.97777657,138.78,138.74,0.65670293]
[1768278216173,0.71901555,138.77,138.73,10.5311346]
[1768278216566,4.04208401,138.78,138.74,0.72473928]
[1768278218379,0.71901555,138.77,138.73,7.20806614]
[1768278218552,0.71901555,138.77,138.73,7.93280542]
[1768278218876,0.71901555,138.77,138.73,7.20806614]
[1768278219586,0.71901555,138.76,138.72,10.5317817]
[1768278219754,0.71901555,138.75,138.72,7.20871324]
[1768278219955,0.68901556,138.75,138.72,7.20871324]
[1768278220287,0.68901556,138.75,138.72,10.5317817]
[1768278220572,3.32306846,138.77,138.72,11.25652098]
[1768278220871,3.32306846,138.77,138.72,10.5317817]
[1768278221076,3.32306846,138.77,138.73,0.72473928]
[1768278221376,7.20513005,138.79,138.72,10.5317817]
[1768278221570,3.32306846,138.77,138.72,113.55652098]
[1768278221769,3.32306846,138.77,138.73,0.72473928]
[1768278222072,4.04208401,138.77,138.73,0.72473928]
[1768278222262,0.71901555,138.76,138.72,113.55652098]
[1768278222876,3.32306846,138.77,138.73,4.04780774]
[1768278223084,4.04208401,138.77,138.73,4.04780774]
[1768278223259,0.71901555,138.76,138.72,110.23345252]
[1768278223459,3.32306846,138.77,138.73,0.72473928]
[1768278223672,4.04208401,138.77,138.73,0.72473928]
[1768278224092,0.71901555,138.76,138.72,113.55652098]
[1768278224377,4.04208401,138.77,138.73,0.72473928]
[1768278224955,0.71901555,138.77,138.73,4.04780774]
[1768278225155,0.71901555,138.77,138.73,3.32306846]
[1768278226582,0.71901555,138.77,138.73,11.25597116]
[1768278226880,4.04208401,138.78,138.74,0.72473928]
[1768278227378,0.71901555,138.77,138.73,11.25597116]
[1768278227676,4.04208401,138.78,138.74,0.72473928]
[1768278227982,0.71901555,138.77,138.74,0.72473928]
[1768278228279,0.71901555,138.77,138.73,11.25597116]
[1768278228476,3.32306846,138.78,138.74,0.72473928]
[1768278228678,0.71901555,138.77,138.74,0.72473928]
[1768278228979,4.04208401,138.78,138.74,0.72473928]
[1768278229378,0.71901555,138.77,138.72,109.50873]
[1768278229562,3.32306846,138.77,138.73,0.72473928]
[1768278229762,0.71901555,138.76,138.72,112.83179846]
[1768278230067,3.32306846,138.77,138.73,0.72473928]
[1768278230366,0.71901555,138.76,138.72,112.83179846]
[1768278230668,0.71901555,138.76,138.72,113.55653774]
[1768278231078,3.32306846,138.77,138.73,0.72473928]
[1768278231485,0.71901555,138.76,138.72,112.83179846]
[1768278231658,0.71901555,138.76,138.73,102.3]
[1768278232665,3.32306846,138.77,138.74,0.72473928]
[1768278233457,0.71901555,138.76,138.73,102.3]
[1768278233778,4.04208401,138.76,138.72,0.72473928]
[1768278234772,3.32306846,138.76,138.72,0.72473928]
[1768278234969,0.71901555,138.75,138.72,0.72473928]
[1768278235163,3.32306846,138.76,138.71,112.8323356]
[1768278235367,7.20628394,138.77,138.71,113.55707488]
[1768278235572,3.32306846,138.76,138.72,0.72473928]
[1768278236064,3.32306846,138.76,138.71,113.55707488]
[1768278236264,3.32306846,138.76,138.72,0.72473928]
[1768278236891,3.32306846,138.76,138.71,109.50926714]
[1768278237192,0.71901555,138.75,138.71,113.55707488]
[1768278237373,2.12977256,138.76,138.72,0.72473928]
[1768278237888,2.84878811,138.76,138.72,0.72473928]
[1768278238061,0.71901555,138.75,138.71,2.85451184]
[1768278238269,2.12977256,138.73,138.71,0.72473928]
[1768278238477,2.84878811,138.73,138.69,14.08473928]
[1768278238679,2.12977256,138.73,138.7,0.72473928]
[1768278239270,0.71901555,138.73,138.69,2.32977256]
[1768278239470,2.12977256,138.74,138.7,0.72473928]
[1768278239781,0.71901555,138.73,138.7,2.12977256]
[1768278240181,2.84878811,138.75,138.71,0.72473928]
[1768278240875,0.71901555,138.74,138.7,2.12977256]
[1768278241168,2.12977256,138.74,138.7,2.12977256]
[1768278241373,2.84878811,138.74,138.7,2.85451184]
[1768278241594,2.12977256,138.74,138.71,0.72473928]
[1768278242095,0.71901555,138.73,138.7,2.12977256]
[1768278242392,2.12977256,138.74,138.7,0.72473928]
[1768278242596,0.71901555,138.71,138.69,0.2]
[1768278242901,18.0193167,138.74,138.64,7.54431937]
[1768278242902,0.71901555,138.69,138.64,7.54431937]
[1768278243195,0.71901555,138.67,138.64,0.2]
[1768278243400,0.68901552,138.67,138.64,0.2]
[1768278243592,2.12977256,138.67,138.64,0.2]
[1768278244099,2.12977256,138.65,138.62,0.2]
[1768278245299,2.12977256,138.65,138.63,0.69257526]
[1768278245510,2.84440453,138.65,138.62,0.2]
[1768278246010,2.12977256,138.65,138.63,0.69257526]
[1768278246376,0.71463197,138.64,138.62,0.2]
[1768278246585,2.12977256,138.63,138.61,0.89257526]
[1768278246785,0.3065066,138.63,138.61,0.2]
[1768278247307,2.84656845,138.65,138.61,0.2]
[1768278247604,0.30240412,138.64,138.61,0.2]
[1768278247980,2.12977256,138.65,138.61,0.89257526]
[1768278248901,0.30240412,138.64,138.61,0.2]
[1768278249091,2.43217668,138.64,138.61,0.2]
[1768278249416,2.12977256,138.65,138.62,0.69257526]
[1768278249704,2.12977256,138.65,138.61,0.2]
[1768278249892,2.12977256,138.64,138.61,0.89257526]
[1768278250088,0.71679589,138.63,138.61,0.2]
[1768278250285,2.12977256,138.64,138.61,0.2]
[1768278250815,2.12977256,138.65,138.62,0.69257526]
[1768278251196,0.71265197,138.64,138.61,0.2]
[1768278251404,2.84242453,138.64,138.61,0.2]
[1768278251583,2.12977256,138.68,138.61,0.89257526]
[1768278251584,2.43217668,138.65,138.61,0.89257526]
[1768278251790,2.12977256,138.64,138.61,0.89257526]
[1768278252110,2.12977256,138.64,138.62,0.69257526]
[1768278252626,0.71265197,138.66,138.62,0.69257526]
[1768278252839,2.12977256,138.65,138.62,0.69257526]
[1768278253739,0.3065066,138.64,138.61,0.2]
[1768278253897,2.12977256,138.65,138.61,0.90375748]
[1768278254392,2.12977256,138.65,138.62,0.70375748]
[1768278254893,0.71277652,138.64,138.61,0.2]
[1768278255092,2.12977256,138.65,138.62,0.70375748]
[1768278255292,0.71692297,138.66,138.62,2.83353004]
[1768278255506,0.71692297,138.66,138.62,2.12977256]
[1768278255917,2.84669553,138.66,138.62,0.70375748]
[1768278256411,2.84669553,138.66,138.61,9.54419677]
[1768278256602,0.71692297,138.66,138.61,10.24795425]
[1768278256797,0.71692297,138.66,138.62,0.70375748]
[1768278256997,2.84669553,138.66,138.62,0.70375748]
[1768278257195,2.12977256,138.66,138.62,0.70375748]
[1768278257618,2.84254908,138.66,138.61,10.24795425]
[1768278257799,0.30638329,138.65,138.61,10.24795425]
[1768278258118,2.12977256,138.66,138.62,0.70375748]
[1768278258917,0.30638329,138.65,138.61,112.54795425]
[1768278259104,2.43205087,138.66,138.61,112.54795425]
[1768278259301,2.12977256,138.66,138.62,0.70375748]
[1768278259617,2.43205087,138.66,138.62,0.70375748]
[1768278260422,2.12977256,138.66,138.62,0.70375748]
[1768278260831,2.84254908,138.66,138.61,112.54795425]
[1768278261416,2.84254908,138.66,138.62,0.70375748]
[1768278261921,2.12977256,138.66,138.62,0.70375748]
[1768278262405,0.30227831,138.65,138.61,111.84419677]
[1768278262608,2.12977256,138.66,138.62,0.70375748]
[1768278262806,0.71692297,138.67,138.62,0.70375748]
[1768278263008,2.84669553,138.67,138.62,2.83353004]
[1768278263206,0.30227831,138.66,138.62,2.83353004]
[1768278263526,0.30227831,138.66,138.62,2.12977256]
[1768278263898,2.43205087,138.66,138.62,103.00375748]
[1768278264626,2.12977256,138.66,138.63,0.70375748]
[1768278264802,2.43615585,138.64,138.62,101.58412869]
[1768278265204,2.12977256,138.64,138.62,101.58412869]
[1768278265508,2.12977256,138.64,138.62,101.3777454]
[1768278267121,2.12977256,138.65,138.62,101.3777454]
[1768278267428,2.12977256,138.65,138.63,0.70375748]
[1768278268619,2.12977256,138.65,138.62,101.3777454]
[1768278268925,2.12977256,138.65,138.62,102.08150288]
[1768278269709,2.12977256,138.65,138.62,0.70375748]
[1768278271221,2.12977256,138.66,138.62,0.70375748]
[1768278271418,2.12977256,138.66,138.61,101.5777454]
[1768278271595,2.12977256,138.66,138.61,102.28150288]
[1768278271916,2.12977256,138.66,138.62,0.70375748]
[1768278273321,2.12977256,138.66,138.61,109.49597623]
[1768278273518,2.12977256,138.66,138.62,0.70375748]
[1768278275625,2.12977256,138.66,138.62,102.07791458]
[1768278276126,20.37103608,138.68,138.63,0.70016918]
[1768278276316,2.12977256,138.67,138.63,0.70016918]
[1768278277624,2.12977256,138.67,138.62,104.20768714]
[1768278278309,2.12977256,138.67,138.63,0.70016918]
[1768278278730,2.12977256,138.67,138.62,104.20768714]
[1768278279331,20.37103608,138.68,138.63,0.70016918]
[1768278279629,15.28977256,138.68,138.64,0.70016918]
[1768278282836,2.12977256,138.67,138.64,0.70016918]
[1768278283209,2.12977256,138.67,138.61,124.78200939]
[1768278283529,2.12977256,138.67,138.62,0.70016918]
[1768278283735,2.12977256,138.66,138.62,0.70016918]
[1768278283908,2.12977256,138.65,138.62,0.70016918]
[1768278287834,7.21155754,138.67,138.62,0.70016918]
[1768278288031,2.12977256,138.66,138.62,0.70016918]
[1768278290031,7.21155754,138.67,138.62,0.70016918]
[1768278290218,2.12977256,138.66,138.62,0.70016918]
[1768278292048,2.12977256,138.65,138.62,0.70016918]
[1768278292539,2.12977256,138.64,138.62,0.70016918]
[1768278292733,2.12977256,138.63,138.61,0.2]
[1768278292929,2.12977256,138.63,138.61,0.90016918]
[1768278293841,2.12977256,138.62,138.61,0.2]
[1768278294038,7.21240533,138.65,138.62,0.70016918]
[1768278294232,2.12977256,138.64,138.62,0.70016918]
[1768278295232,2.12977256,138.63,138.62,0.70016918]
[1768278296245,2.12977256,138.63,138.61,0.2]
[1768278297644,7.21344688,138.63,138.6,0.2]
[1768278297834,2.12977256,138.62,138.6,0.2]
[1768278298222,20.37307695,138.64,138.6,0.2]
[1768278298423,2.12977256,138.63,138.6,0.2]
[1768278298733,13.16,138.64,138.6,0.90016918]
[1768278298933,2.12977256,138.63,138.6,0.90016918]
[1768278299441,2.12977256,138.63,138.61,0.70016918]
[1768278299442,3.33400566,138.63,138.61,0.70016918]
[1768278300442,3.33400566,138.62,138.6,0.2]
[1768278301548,3.33400566,138.62,138.6,0.90016918]
[1768278301938,16.49400566,138.64,138.61,0.70016918]
[1768278302448,13.16,138.64,138.61,0.70016918]
[1768278303133,16.49400566,138.64,138.61,0.70016918]
[1768278303756,16.49400566,138.64,138.63,0.70016918]
[1768278303757,10.985,138.64,138.63,0.70016918]
[1768278304046,10.36244543,138.64,138.6,10.74900393]
[1768278304249,3.98976981,138.66,138.61,10.5484404]
[1768278306438,4.01995533,138.64,138.6,0.2]
[1768278306650,3.33400566,138.63,138.6,0.2]
[1768278307026,4.01995533,138.64,138.6,0.2]
[1768278309962,0.68594967,138.64,138.6,0.2]
[1768278310145,4.01995533,138.64,138.6,0.2]
[1768278311054,0.68594967,138.63,138.6,0.2]
[1768278311444,4.01995533,138.64,138.6,0.2]
[1768278312555,0.68594967,138.64,138.6,7.41475616]
[1768278312753,3.33400566,138.65,138.6,10.74876182]
[1768278312952,4.01995533,138.65,138.6,10.74876182]
[1768278313840,4.01995533,138.65,138.6,113.04876182]
[1768278314047,0.65951137,138.68,138.62,3.33400566]
[1768278314260,0.65951137,138.68,138.63,3.33400566]
[1768278314439,0.61709165,138.68,138.63,3.33400566]
[1768278314635,3.33400566,138.68,138.63,3.33400566]
[1768278314960,7.21000084,138.7,138.63,3.33400566]
[1768278315160,3.33400566,138.68,138.63,3.33400566]
[1768278316459,3.99351703,138.68,138.63,3.33400566]
[1768278317665,3.99351703,138.68,138.63,10.54737052]
[1768278318360,0.65951137,138.68,138.63,10.54737052]
[1768278318564,3.99351703,138.68,138.63,10.54737052]
[1768278318865,0.65951137,138.67,138.63,10.54737052]
[1768278319560,0.65951137,138.67,138.63,112.84737052]
[1768278319959,0.65951137,138.67,138.63,102.3]
[1768278320271,0.65951137,138.66,138.63,102.3]
[1768278320870,0.65951137,138.66,138.63,112.84726879]
[1768278321076,0.65951137,138.67,138.63,112.84726879]
[1768278322471,0.65951137,138.71,138.63,25.24687778]
[1768278322770,0.65951137,138.69,138.65,3.33400566]
[1768278322955,0.65951137,138.67,138.63,23.70726879]
[1768278323268,0.65951137,138.66,138.63,20.37326313]
[1768278323448,0.65951137,138.66,138.63,23.70726879]
[1768278323649,0.65951137,138.66,138.64,3.33400566]
[1768278324478,0.65951137,138.66,138.64,10.54690068]
[1768278325140,0.65951137,138.66,138.64,7.21289502]
[1768278328264,0.65951137,138.66,138.64,109.51289502]
[1768278330278,0.65951137,138.66,138.64,102.3]
[1768278332183,0.65951137,138.7,138.65,3.33400566]
[1768278332356,0.65951137,138.7,138.65,105.63400566]
[1768278332688,0.65951137,138.7,138.65,102.3]
[1768278332986,0.65951137,138.7,138.65,105.63400566]
[1768278333489,0.65951137,138.7,138.65,112.84598393]
[1768278334057,0.65951137,138.7,138.66,3.33400566]
[1768278335962,0.65951137,138.7,138.67,10.54537077]
[1768278336456,0.66874909,138.71,138.67,10.54537077]
[1768278336662,0.66874909,138.71,138.68,3.33400566]
[1768278336872,0.66874909,138.71,138.68,105.63400566]
[1768278337066,0.66874909,138.73,138.69,3.33400566]
[1768278337254,0.66874909,138.73,138.69,3.23158594]
[1768278337467,0.62634438,138.73,138.68,105.63400566]
[1768278337964,0.62634438,138.73,138.69,7.21032518]
[1768278340182,0.66874909,138.72,138.69,7.21032518]
[1768278340881,0.66874909,138.71,138.68,109.51066525]
[1768278342879,0.66874909,138.71,138.68,102.3]
[1768278342880,0.66874909,138.7,138.68,102.3]
[1768278343077,0.56874909,138.69,138.68,99.99357352]
[1768278343284,3.33400566,138.7,138.68,99.89357352]
[1768278345780,3.80275475,138.71,138.68,99.89357352]
[1768278346082,3.80275475,138.71,138.67,7.86706839]
[1768278349086,0.46874909,138.71,138.67,7.86706839]
[1768278349394,0.46874909,138.71,138.68,0.65571215]
[1768278354790,3.80275475,138.71,138.68,0.65571215]
[1768278354985,3.43300566,138.7,138.67,7.21135624]
[1768278356395,3.43300566,138.7,138.66,7.86739674]
[1768278357593,0.46505159,138.69,138.66,7.86739674]
[1768278358087,0.10266052,138.67,138.65,107.10579432]
[1768278358287,0.10266052,138.67,138.65,7.2122208]
[1768278358586,0.10266052,138.67,138.65,6.74613223]
[1768278359294,0.10266052,138.67,138.64,10.54693122]
[1768278359689,0.10266052,138.67,138.64,7.21292556]
[1768278360897,3.33400566,138.69,138.64,7.86863771]
[1768278361383,2.13199807,138.69,138.64,7.86863771]
[1768278362598,2.13199807,138.69,138.65,0.65571215]
[1768278364299,2.13199807,138.68,138.65,0.65571215]
[1768278364994,2.13199807,138.69,138.65,0.65571215]
[1768278366393,2.13199807,138.66,138.62,0.66446359]
[1768278366592,2.13199807,138.65,138.62,0.66446359]
[1768278366899,2.10199808,138.65,138.62,0.66446359]
[1768278367203,2.13199807,138.64,138.62,0.66446359]
[1768278367500,2.13199807,138.63,138.61,0.66446359]
[1768278367792,2.13199807,138.64,138.61,7.8788792]
[1768278370706,7.21164705,138.67,138.61,7.8788792]
[1768278371000,2.13199807,138.64,138.61,7.8788792]
[1768278371908,2.13199807,138.64,138.62,0.66446359]
[1768278372083,1e-08,138.64,138.62,0.66446359]
[1768278373088,1e-08,138.64,138.61,0.66446359]
[1768278374405,2.13199807,138.63,138.61,0.66446359]
[1768278374619,2.13199807,138.63,138.6,0.90278976]
[1768278374794,2.13199807,138.63,138.61,0.70278976]
[1768278374996,2.13199807,138.64,138.61,0.70278976]
[1768278377797,2.13199807,138.65,138.6,8.11770906]
[1768278378619,2.13199807,138.65,138.61,0.70278976]
[1768278379415,2.13199807,138.65,138.6,8.11770906]
[1768278379615,2.13199807,138.65,138.61,0.70278976]
[1768278383896,2.13199807,138.65,138.62,0.70278976]
[1768278385414,2.13199807,138.65,138.61,100.59636328]
[1768278385837,2.13199807,138.65,138.62,0.70278976]
[1768278386214,2.13199807,138.66,138.61,99.89357352]
[1768278386621,2.13199807,138.66,138.62,0.70278976]
[1768278386939,2.13199807,138.66,138.61,107.81083782]
[1768278387234,2.13199807,138.66,138.62,0.70278976]
[1768278387427,2.13199807,138.66,138.61,107.81083782]
[1768278387730,2.13199807,138.66,138.62,0.70278976]
[1768278388243,2.13199807,138.66,138.61,107.10804806]
[1768278388447,2.13199807,138.65,138.62,0.70278976]
[1768278389036,2.13199807,138.65,138.61,107.10804806]
[1768278389343,2.13199807,138.65,138.62,0.70278976]
[1768278389643,2.13199807,138.65,138.61,107.81083782]
[1768278389941,2.13199807,138.65,138.62,0.70278976]
[1768278390134,2.13199807,138.65,138.61,107.81083782]
[1768278391140,2.13199807,138.65,138.62,0.70278976]
[1768278391343,2.10199807,138.65,138.61,107.81083782]
[1768278391644,2.10199807,138.65,138.62,0.70278976]
[1768278392143,2.10199807,138.65,138.61,107.81083782]
[1768278392337,2.10199807,138.65,138.62,0.70278976]
[1768278393950,2.10199807,138.65,138.61,99.89357352]
[1768278394246,2.10199807,138.65,138.62,0.70278976]
[1768278394630,2.10199807,138.65,138.61,100.56982214]
[1768278395024,2.10199807,138.65,138.62,0.67624862]
[1768278395420,2.10199807,138.65,138.61,100.56982214]
[1768278395926,2.10199807,138.65,138.62,0.67624862]
[1768278396149,2.10199807,138.65,138.61,100.56982214]
[1768278396528,2.13199807,138.66,138.62,0.67624862]
[1768278397042,2.13199807,138.66,138.61,100.56982214]
[1768278397246,2.13199807,138.66,138.62,0.67624862]
[1768278397431,2.13199807,138.66,138.61,99.89357352]
[1768278397628,2.13199807,138.66,138.62,0.67624862]
[1768278398247,9.34393205,138.66,138.62,0.67624862]
[1768278398845,2.13199807,138.65,138.61,99.89357352]
[1768278399053,2.13199807,138.65,138.62,0.67624862]
[1768278399347,2.13199807,138.65,138.61,100.56982214]
[1768278399547,2.13199807,138.65,138.62,0.67624862]
[1768278400041,2.13199807,138.65,138.61,99.89357352]
[1768278400425,2.13199807,138.65,138.61,100.56982214]
[1768278400861,2.13199807,138.65,138.61,99.89357352]
[1768278401250,2.13199807,138.65,138.61,100.56982214]
[1768278401554,2.13199807,138.65,138.61,0.67624862]
[1768278402049,2.13199807,138.65,138.6,100.09357352]
[1768278402240,2.13199807,138.65,138.61,0.67624862]
[1768278403642,2.13199807,138.64,138.61,0.67624862]
[1768278404850,7.21244832,138.65,138.61,0.67624862]
[1768278405048,9.34444639,138.65,138.61,0.67624862]
[1768278409854,2.13199807,138.64,138.61,0.67624862]
[1768278412848,2.13199807,138.63,138.61,0.67624862]
[1768278413369,2.13199807,138.62,138.6,0.87624862]
[1768278413542,2.13199807,138.62,138.6,0.77384689]
[1768278414960,2.13199807,138.62,138.6,0.09759827]
[1768278415467,2.13199807,138.63,138.6,0.77384689]
[1768278416264,7.21293286,138.64,138.6,0.77384689]
[1768278416265,2.13199807,138.62,138.6,0.77384689]
[1768278421367,3.33461254,138.62,138.6,0.77384689]
[1768278422671,10.5475454,138.64,138.6,0.77384689]
[1768278422672,20.39254378,138.65,138.6,0.77384689]
[1768278422858,13.18,138.64,138.6,0.77384689]
[1768278423053,15.40980021,138.69,138.61,0.67624862]
[1768278423054,10.44603921,138.69,138.61,0.67624862]
[1768278423260,13.18,138.68,138.63,0.67624862]
[1768278423570,3.33461254,138.67,138.63,0.67624862]
[1768278425273,16.51461254,138.68,138.63,0.67624862]
[1768278425856,13.18,138.68,138.64,0.67570901]
[1768278426470,16.51461254,138.68,138.64,0.67570901]
[1768278430159,13.18,138.68,138.64,7.88849277]
[1768278430359,13.18,138.68,138.65,0.67570901]
[1768278435577,23.70408979,138.71,138.66,0.68843892]
[1768278435781,16.49461254,138.71,138.66,0.68843892]
[1768278439989,3.33461254,138.69,138.66,0.68843892]
[1768278440165,3.33461254,138.68,138.66,0.68843892]
[1768278440983,3.33461254,138.69,138.66,0.68843892]
[1768278443279,10.54453037,138.7,138.66,0.68843892]
[1768278448976,3.33461254,138.7,138.66,0.68843892]
[1768278450589,10.54445507,138.7,138.66,0.68843892]
[1768278450898,3.33461254,138.69,138.66,0.68843892]
[1768278451195,3.33461254,138.69,138.65,0.68843892]
[1768278451580,3.33461254,138.69,138.64,0.68843892]
[1768278451581,3.33461254,138.67,138.64,0.68843892]
[1768278453994,13.16,138.68,138.64,0.68843892]
[1768278454198,3.33461254,138.67,138.64,0.68843892]